lending/lending_fUSD_20260222
["ID","MTS","AMOUNT","RATE_DAILY","PERIOD"]
[406332990,1771756241466,-500.0,0.00016626,2]
[406332991,1771756241476,-250.0,0.00016626,2]
[406332992,1771756241486,-500.0,0.00016626,2]
[406332993,1771756241496,-500.0,0.00016626,2]
[406332994,1771756241505,-250.0,0.00016626,2]
[406332995,1771756241516,-500.0,0.00016626,2]
[406332996,1771756241526,-500.0,0.00016626,2]
[406332997,1771756241536,-257.87287478,0.00016626,2]
[406332998,1771756241546,-500.0,0.00016626,2]
[406332999,1771756241556,-500.0,0.00016626,2]
[406333000,1771756241566,-151.0,0.00016626,2]
[406333001,1771756241580,-500.0,0.00016626,2]
[406333002,1771756241590,-203.84209265,0.00016626,2]
[406333003,1771756241600,-500.0,0.00016626,2]
[406333004,1771756241609,-693.3919763,0.00016626,2]
[406333005,1771756241619,-1000.0,0.00016626,2]
[406333006,1771756241629,-1000.0,0.00016626,2]
[406333007,1771756241639,-1000.0,0.00016626,2]
[406333008,1771756241649,-1000.0,0.00016626,2]
[406333009,1771756241659,-1000.0,0.00016626,2]
[406333010,1771756241669,-1000.0,0.00016626,2]
[406333011,1771756241680,-1000.0,0.00016626,2]
[406333012,1771756241694,-291.52616731,0.00016626,2]
[406333013,1771756241703,-500.0,0.00016626,2]
[406333014,1771756241713,-1510.0,0.00016628,2]
[406333015,1771756241723,-233.11431957,0.00016681,2]
[406333016,1771756241733,-719.04747942,0.00016681,2]
[406333017,1771756241742,-442.0,0.00016702,2]
[406333018,1771756241753,-500.0,0.00016721,2]
[406333019,1771756241763,-500.0,0.00016721,2]
[406333020,1771756241772,-500.0,0.00016721,2]
[406333021,1771756241782,-239.04610872,0.00016721,2]
[406333022,1771756241792,-500.0,0.00016721,2]
[406333023,1771756241802,-500.0,0.00016721,2]
[406333024,1771756241811,-500.0,0.00016721,2]
[406333025,1771756241821,-1072.0,0.00016721,2]
[406333026,1771756241831,-1000.0,0.00016722,2]
[406333027,1771756241841,-399.0,0.00016736,2]
[406333028,1771756241850,-745.65223616,0.00016736,2]
[406333029,1771756241859,-507.0,0.00016755,2]
[406333030,1771756241869,-150.99,0.00016767,2]
[406333031,1771756241879,-299.99,0.00016767,4]
[406333032,1771756241888,-150.99,0.00016767,2]
[406333033,1771756241898,-9999.99,0.00016767,2]
[406333034,1771756241907,-1401.18,0.00016767,2]
[406333035,1771756241917,-191.0,0.00016769,2]
[406333036,1771756241926,-1923.0,0.00016788,2]
[406333037,1771756241940,-773.2413689,0.00016791,2]
[406333038,1771756241951,-281.19048695,0.0001682,2]
[406333039,1771756241960,-999.99,0.00016822,2]
[406333040,1771756241970,-9999.99,0.00016822,2]
[406333041,1771756241979,-182.02200372,0.00016823,2]
[406333042,1771756241989,-1070.0,0.00016835,2]
[406333043,1771756241999,-187.0,0.00016836,2]
[406333044,1771756242009,-801.85129955,0.00016846,2]
[406333045,1771756242019,-199.0,0.0001685,2]
[406333046,1771756242029,-709.0,0.00016868,2]
[406333047,1771756242040,-241.06,0.000169,2]
[406333048,1771756242050,-163.0,0.000169,2]
[406333049,1771756242061,-831.51979763,0.00016901,2]
[406333050,1771756242071,-862.28603014,0.00016956,2]
[406333051,1771756242081,-1430.25515928,0.00017,2]
[406333052,1771756242090,-275.84275382,0.00017002,2]
[406333053,1771756242100,-894.19061326,0.00017011,2]
[406333054,1771756242110,-27072.48,0.00017017,2]
[406333055,1771756242120,-166.66,0.00017062,2]
[406333056,1771756242135,-927.27566595,0.00017066,2]
[406333057,1771756242146,-5000.0,0.000171,2]
[406333058,1771756242157,-1600.0,0.0001712,2]
[406333059,1771756242166,-961.58486559,0.00017121,2]
[406333060,1771756242176,-997.16350561,0.00017176,2]
[406333061,1771756242186,-281.19048695,0.0001718,2]
[406333062,1771756242196,-200.0,0.00017181,2]
[406333063,1771756242206,-600.0,0.00017272,2]
[406333064,1771756242216,-163.0,0.000173,2]
[406333065,1771756242226,-168.0,0.00017362,2]
[406333066,1771756242237,-198.13924219,0.00017415,2]
[406333067,1771756242247,-1209.0,0.00017431,2]
[406333068,1771756242257,-150.0,0.00017448,2]
[406333069,1771756242268,-500.0,0.00017448,2]
[406333070,1771756242278,-150.0,0.00017448,2]
[406333071,1771756242288,-500.0,0.00017448,2]
[406333072,1771756242299,-500.0,0.00017448,2]
[406333073,1771756242309,-174.55382438,0.00017448,2]
[406333074,1771756242319,-500.0,0.00017448,2]
[406333075,1771756242330,-8138.0,0.00017462,2]
[406333076,1771756242339,-150.0,0.00017503,2]
[406333077,1771756242349,-500.0,0.00017503,2]
[406333078,1771756242359,-500.0,0.00017503,2]
[406333079,1771756242369,-500.0,0.00017503,2]
[406333080,1771756242379,-5511.966469,0.00017524,2]
[406333081,1771756242389,-3367.28136771,0.00017538,2]
[406333082,1771756242398,-281.19048695,0.0001754,2]
[406333083,1771756242408,-200.0,0.00017558,2]
[406333084,1771756242418,-500.0,0.00017558,2]
[406333085,1771756242428,-500.0,0.00017558,2]
[406333086,1771756242438,-2000.0,0.000176,2]
[406333087,1771756242447,-420.0,0.000176,2]
[406333088,1771756242457,-500.0,0.00017612,2]
[406333089,1771756242467,-500.0,0.00017612,2]
[406333090,1771756242477,-166.66,0.00017625,2]
[406333091,1771756242489,-2093.73477282,0.0001764,2]
[406333092,1771756242499,-500.0,0.00017667,2]
[406333093,1771756242509,-1680.0,0.00017688,2]
[406333094,1771756242519,-168.0,0.00017694,2]
[406333095,1771756242528,-2000.0,0.000177,2]
[406333096,1771756242538,-2000.0,0.000177,2]
[406333097,1771756242547,-2000.0,0.000177,2]
[406333098,1771756242558,-2000.0,0.000177,2]
[406333099,1771756242568,-2000.0,0.000177,2]
[406333100,1771756242578,-2000.0,0.000177,2]
[406333101,1771756242589,-164.82522535,0.00017731,2]
[406333102,1771756242600,-182.06658955,0.00017731,2]
[406333103,1771756242609,-2000.0,0.0001782,2]
[406333105,1771756242620,-2000.0,0.0001782,2]
[406333106,1771756242630,-891.02831,0.0001782,2]
[406333107,1771756242639,-168.0,0.00017825,2]
[406333108,1771756242649,-281.19048695,0.000179,2]
[406333109,1771756242660,-891.02831,0.0001792,2]
[406333110,1771756242671,-1914.8628957,0.00017955,2]
[406333111,1771756242681,-926.3118746,0.00017955,2]
[406333112,1771756242692,-226.73826614,0.00017982,2]
[406333113,1771756242704,-155.0,0.00017999,2]
[406333114,1771756242714,-370617.67708693,0.00018,2]
[406333117,1771756242893,-150.0,0.00017448,2]
[406333118,1771756242903,-342.63004839,0.00017503,2]
[406333119,1771756242916,-157.36995161,0.00017503,2]
[406333120,1771756242925,-402.35597106,0.00017558,2]
[406333121,1771756242938,-97.64402894,0.00017558,2]
[406333122,1771756242948,-244.21997106,0.00017558,2]
[406333123,1771756243223,-150.0,0.00017448,2]
[406333124,1771756243238,-255.78002894,0.00017558,2]
[406333125,1771756243248,-500.0,0.00017612,2]
[406333126,1771756243258,-500.0,0.00017612,2]
[406333127,1771756243269,-24953.07115106,0.00018,2]
[406333138,1771756245928,-500.0,0.00016521,2]
[406333139,1771756245938,-856.2001,0.00018,2]
[406333140,1771756245950,-3943.46516156,0.00018,2]
[406333141,1771756245983,-535.0,0.00018,2]
[406333151,1771756345421,532.57,0.0001,2]
[406333154,1771756926352,394.15,0.00012938,2]
[406333155,1771756926545,394.15,0.00013109,2]
[406333156,1771756926896,394.15,0.00013279,2]
[406333157,1771756927094,394.15,0.00013449,2]
[406333158,1771756927294,394.15,0.00013619,2]
[406333159,1771756927484,394.15,0.0001379,2]
[406333160,1771756927668,394.15,0.0001396,2]
[406333161,1771756927862,394.15,0.0001413,2]
[406333162,1771756928056,394.15,0.000143,2]
[406333163,1771756928259,394.15,0.00014471,2]
[406333164,1771756928457,394.15,0.00014641,2]
[406333165,1771756928670,394.15,0.00014811,2]
[406333166,1771756928858,394.15,0.00014981,2]
[406333167,1771756929049,394.15,0.00015152,2]
[406333168,1771756929251,394.15,0.00015322,2]
[406333169,1771756929430,394.15,0.00015492,2]
[406333178,1771757432010,-394.15,0.00015662,2]
[406333179,1771757432020,-600.0,0.00015664,2]
[406333180,1771757432031,-253.11161565,0.00015667,2]
[406333181,1771757432040,-3091.494,0.00015679,2]
[406333182,1771757432050,-300.942,0.00015679,2]
[406333183,1771757432059,-600.0,0.00015681,2]
[406333184,1771757432069,-600.0,0.00015681,2]
[406333185,1771757432079,-600.0,0.00015681,2]
[406333186,1771757432088,-1200.0,0.00015698,2]
[406333187,1771757432097,-300.0,0.00015797,2]
[406333188,1771757432107,-500.0,0.00015798,2]
[406333189,1771757432116,-169.8662217,0.00015798,2]
[406333190,1771757432125,-174.45652868,0.00015798,2]
[406333191,1771757432135,-318.2701191,0.00015798,2]
[406333192,1771757432147,-500.0,0.00015798,2]
[406333193,1771757432350,-500.0,0.00015798,2]
[406333194,1771757432360,-500.0,0.00015798,2]
[406333195,1771757432372,-500.0,0.00015798,2]
[406333196,1771757432382,-500.0,0.00015798,2]
[406333197,1771757432392,-500.0,0.00015798,2]
[406333198,1771757432402,-500.0,0.00015798,2]
[406333199,1771757432416,-469.34744041,0.00015798,2]
[406333200,1771757432427,-500.0,0.00015798,2]
[406333201,1771757432436,-500.0,0.00015798,2]
[406333202,1771757432446,-500.0,0.00015798,2]
[406333203,1771757432455,-500.0,0.00015798,2]
[406333204,1771757432464,-500.0,0.00015798,2]
[406333205,1771757432474,-500.0,0.00015798,2]
[406333206,1771757432483,-500.0,0.00015798,2]
[406333207,1771757432492,-500.0,0.00015798,2]
[406333208,1771757432501,-500.0,0.00015798,2]
[406333209,1771757432511,-500.0,0.00015798,2]
[406333210,1771757432520,-500.0,0.00015798,2]
[406333211,1771757432530,-500.0,0.00015798,2]
[406333212,1771757432539,-500.0,0.00015798,2]
[406333213,1771757432548,-500.0,0.00015798,2]
[406333214,1771757432558,-500.0,0.00015798,2]
[406333215,1771757432567,-500.0,0.00015798,2]
[406333216,1771757432577,-500.0,0.00015798,2]
[406333217,1771757432586,-500.0,0.00015798,2]
[406333218,1771757432596,-500.0,0.00015798,2]
[406333219,1771757432605,-500.0,0.00015798,2]
[406333220,1771757432615,-500.0,0.00015798,2]
[406333221,1771757432625,-500.0,0.00015798,2]
[406333222,1771757432634,-500.0,0.00015798,2]
[406333223,1771757432644,-500.0,0.00015798,2]
[406333224,1771757432654,-500.0,0.00015798,2]
[406333225,1771757432664,-500.0,0.00015798,2]
[406333226,1771757432684,-500.0,0.00015798,2]
[406333227,1771757432695,-500.0,0.00015798,2]
[406333228,1771757432704,-500.0,0.00015798,2]
[406333229,1771757432714,-500.0,0.00015798,2]
[406333230,1771757432724,-500.0,0.00015798,2]
[406333231,1771757432733,-150.0,0.00015799,2]
[406333232,1771757432743,-45840.32744918,0.00015799,2]
[406333233,1771757432755,-5000.00815921,0.00015799,2]
[406333234,1771757432767,-11878.2807194,0.00015799,2]
[406333235,1771757438000,-8876.3796504,0.00015799,2]
[406333236,1771757438013,-36169.1975135,0.00015799,2]
[406333237,1771757438159,-1276.78651,0.00015799,2]
[406333238,1771757438171,-593.41340116,0.00015799,2]
[406333240,1771757440244,-547.03466666,0.00015799,2]
[406333241,1771757440299,-5090.14963186,0.00015799,2]
[406333242,1771757440408,-390418.72904522,0.00015799,2]
[406333247,1771757443123,-5634.74614519,0.00015799,2]
[406333248,1771757443339,-4590.56293747,0.00015799,2]
[406333249,1771757443388,-473.06197046,0.00015799,2]
[406333290,1771757497154,2742.762,0.00015483,2]
[406333291,1771757497206,275.692,0.00015483,2]
[406333292,1771757508966,-10000.0,0.00015699,2]
[406333293,1771757508991,-681.01463654,0.00015699,2]
[406333294,1771757509194,-14318.98536346,0.000157,2]
[406333295,1771757511272,-25000.0,0.000157,2]
[406333296,1771757512225,-25000.0,0.00015699,2]
[406333297,1771757513306,-7865.5238,0.00015699,2]
[406333298,1771757513332,-17134.4762,0.000157,2]
[406333299,1771757513720,-25000.0,0.000157,2]
[406333300,1771757514440,-25000.0,0.000157,2]
[406333301,1771757529320,300.0,0.000156,5]
[406333303,1771757580250,505.08814663,0.00015599,2]
[406333304,1771757589950,454.00975768,0.00015599,2]
[406333305,1771757624331,-300.0,0.00015698,2]
[406333306,1771757634365,-84951.0,0.00015699,2]
[406333307,1771757662916,608.62483176,0.00015599,2]
[406333308,1771757684989,281.19048695,0.00015599,2]
[406333309,1771757691714,165.20180217,0.00015599,2]
[406333310,1771757700485,336.72543108,0.00015599,2]
[406333311,1771757703970,1000.0,0.00015599,2]
[406333312,1771757720266,302.6731718,0.00015599,2]
[406333313,1771757818778,249.441308,0.00015009,7]
[406333314,1771757820713,224.48362072,0.00015599,2]
[406333315,1771757821889,482641.56744321,0.00015599,2]
[406333316,1771757883342,155.0,0.000155,2]
[406333317,1771757890899,3615.02283231,0.00015499,2]
[406333318,1771757930420,173.53078906,0.00012,2]
[406333319,1771757985866,297.8884364,0.00015499,2]
[406333320,1771758049991,1626.69390488,0.00015499,2]
[406333321,1771758058066,12012.12234169,0.00015499,2]
[406333322,1771758097170,2194.21,0.00015287,2]
[406333323,1771758097217,220.554,0.00015287,2]
[406333324,1771758116166,198.59229092,0.00015499,2]
[406333325,1771758121433,1997.19,0.00012961,2]
[406333326,1771758148995,2509.19540474,0.0001488,2]
[406333327,1771758149022,16299.11459526,0.0001488,2]
[406333328,1771758323555,199.7,0.0001,2]
[406333330,1771758363822,166.66,0.00013984,2]
[406333331,1771758364024,166.66,0.00014278,2]
[406333332,1771758364223,166.66,0.00014573,2]
[406333333,1771758364412,166.66,0.00014867,2]
[406333343,1771758632075,-166.66,0.00015162,2]
[406333344,1771758632089,-184.8699975,0.00015162,2]
[406333345,1771758632130,-415.1300025,0.00015162,2]
[406333346,1771758632141,-276.0,0.00015162,2]
[406333347,1771758632152,-415.71361339,0.00015295,2]
[406333348,1771758632198,-0.68304771,0.00015295,2]
[406333349,1771758632234,-4583.6033389,0.00015295,2]
[406333350,1771758632244,-166.66,0.00015456,2]
[406333351,1771758632253,-300.0,0.00015498,2]
[406333352,1771758632263,-1200.0,0.00015498,2]
[406333353,1771758632272,-572.05534163,0.00015499,2]
[406333354,1771758632282,-3253.52054907,0.00015499,2]
[406333355,1771758632291,-1464.02451441,0.00015499,2]
[406333356,1771758632301,-300.0,0.000155,5]
[406333357,1771758632310,-3253.52054901,0.0001551,2]
[406333358,1771758632320,-1464.02451433,0.0001551,2]
[406333359,1771758632330,-3253.52054901,0.00015521,2]
[406333360,1771758632339,-1464.02451433,0.00015521,2]
[406333362,1771758632349,-3253.52054901,0.00015533,2]
[406333363,1771758632359,-1464.02451433,0.00015533,2]
[406333364,1771758632369,-3253.52054901,0.00015544,2]
[406333365,1771758632379,-1464.02451433,0.00015544,2]
[406333366,1771758632388,-300.0,0.00015554,2]
[406333367,1771758632397,-3253.52054901,0.00015555,2]
[406333368,1771758632407,-1464.02451433,0.00015555,2]
[406333369,1771758632417,-3253.52054901,0.00015566,2]
[406333370,1771758632427,-1464.02451433,0.00015566,2]
[406333371,1771758632436,-3253.52054901,0.00015578,2]
[406333372,1771758632448,-1464.02451433,0.00015578,2]
[406333373,1771758632457,-3253.52054901,0.00015589,2]
[406333374,1771758632467,-1464.02451433,0.00015589,2]
[406333375,1771758632476,-151.0,0.0001559,2]
[406333376,1771758632486,-151.0,0.0001559,2]
[406333377,1771758632496,-151.0,0.0001559,2]
[406333378,1771758632505,-151.0,0.0001559,2]
[406333379,1771758632514,-151.0,0.0001559,2]
[406333380,1771758632524,-151.0,0.0001559,2]
[406333381,1771758632533,-151.0,0.0001559,2]
[406333382,1771758632542,-151.0,0.0001559,2]
[406333383,1771758632551,-151.0,0.0001559,2]
[406333384,1771758632560,-151.0,0.0001559,2]
[406333385,1771758632570,-151.0,0.0001559,2]
[406333386,1771758632579,-151.0,0.0001559,2]
[406333387,1771758632589,-151.0,0.0001559,2]
[406333388,1771758632598,-151.0,0.0001559,2]
[406333389,1771758632607,-151.0,0.0001559,2]
[406333390,1771758632616,-151.0,0.0001559,2]
[406333391,1771758632625,-151.0,0.0001559,2]
[406333392,1771758632636,-151.0,0.0001559,2]
[406333393,1771758632645,-151.0,0.0001559,2]
[406333394,1771758632654,-151.0,0.0001559,2]
[406333395,1771758632663,-151.0,0.0001559,2]
[406333396,1771758632672,-151.0,0.0001559,2]
[406333397,1771758632681,-151.0,0.0001559,2]
[406333398,1771758632691,-151.0,0.0001559,2]
[406333399,1771758632700,-151.0,0.0001559,2]
[406333400,1771758632710,-151.0,0.0001559,2]
[406333401,1771758632720,-151.0,0.0001559,2]
[406333402,1771758632729,-151.0,0.0001559,2]
[406333403,1771758632739,-151.0,0.0001559,2]
[406333404,1771758632748,-151.0,0.0001559,2]
[406333405,1771758632758,-151.0,0.0001559,2]
[406333406,1771758632768,-500.0,0.00015596,2]
[406333407,1771758632777,-614.61214042,0.00015596,2]
[406333408,1771758632787,-563.14702534,0.00015596,2]
[406333409,1771758632797,-500.0,0.00015596,2]
[406333410,1771758632807,-500.0,0.00015596,2]
[406333411,1771758632818,-500.0,0.00015596,2]
[406333412,1771758632828,-500.0,0.00015596,2]
[406333413,1771758632838,-500.0,0.00015596,2]
[406333414,1771758632848,-500.0,0.00015596,2]
[406333415,1771758632858,-500.0,0.00015596,2]
[406333416,1771758632868,-263.7555946,0.00015596,2]
[406333417,1771758632877,-404.38214481,0.00015596,2]
[406333418,1771758632887,-500.0,0.00015596,2]
[406333419,1771758632896,-500.0,0.00015596,2]
[406333420,1771758632906,-284.03160441,0.00015596,2]
[406333421,1771758632915,-500.0,0.00015596,2]
[406333422,1771758632925,-500.0,0.00015596,2]
[406333423,1771758632935,-500.0,0.00015596,2]
[406333424,1771758632945,-500.0,0.00015596,2]
[406333425,1771758632955,-500.0,0.00015596,2]
[406333426,1771758632964,-500.0,0.00015596,2]
[406333427,1771758632975,-500.0,0.00015596,2]
[406333428,1771758632985,-500.0,0.00015596,2]
[406333429,1771758632995,-500.0,0.00015596,2]
[406333430,1771758633004,-500.0,0.00015596,2]
[406333431,1771758633013,-500.0,0.00015596,2]
[406333432,1771758633023,-319.18447048,0.00015596,2]
[406333433,1771758633032,-500.0,0.00015596,2]
[406333434,1771758633042,-500.0,0.00015596,2]
[406333435,1771758633051,-500.0,0.00015596,2]
[406333436,1771758633060,-500.0,0.00015596,2]
[406333437,1771758633069,-500.0,0.00015596,2]
[406333438,1771758633079,-500.0,0.00015596,2]
[406333439,1771758633091,-500.0,0.00015596,2]
[406333440,1771758633100,-500.0,0.00015596,2]
[406333441,1771758633110,-500.0,0.00015596,2]
[406333442,1771758633119,-500.0,0.00015596,2]
[406333443,1771758633129,-500.0,0.00015596,2]
[406333444,1771758633139,-500.0,0.00015596,2]
[406333445,1771758633149,-500.0,0.00015596,2]
[406333446,1771758633159,-500.0,0.00015596,2]
[406333447,1771758633168,-500.0,0.00015596,2]
[406333448,1771758633178,-500.0,0.00015596,2]
[406333449,1771758633189,-500.0,0.00015596,2]
[406333450,1771758633200,-500.0,0.00015596,2]
[406333451,1771758633211,-500.0,0.00015596,2]
[406333452,1771758633221,-500.0,0.00015596,2]
[406333453,1771758633230,-500.0,0.00015596,2]
[406333454,1771758633239,-500.0,0.00015596,2]
[406333455,1771758633248,-500.0,0.00015596,2]
[406333456,1771758633258,-500.0,0.00015596,2]
[406333457,1771758633267,-500.0,0.00015596,2]
[406333458,1771758633276,-500.0,0.00015596,2]
[406333459,1771758633286,-500.0,0.00015596,2]
[406333460,1771758633296,-500.0,0.00015596,2]
[406333461,1771758633305,-500.0,0.00015596,2]
[406333462,1771758633314,-500.0,0.00015596,2]
[406333463,1771758633323,-500.0,0.00015596,2]
[406333464,1771758633333,-500.0,0.00015596,2]
[406333465,1771758633342,-500.0,0.00015596,2]
[406333466,1771758633351,-500.0,0.00015596,2]
[406333467,1771758633361,-500.0,0.00015596,2]
[406333468,1771758633370,-500.0,0.00015596,2]
[406333469,1771758633380,-500.0,0.00015596,2]
[406333470,1771758633389,-500.0,0.00015596,2]
[406333471,1771758633399,-500.0,0.00015596,2]
[406333472,1771758633408,-500.0,0.00015596,2]
[406333473,1771758633417,-500.0,0.00015596,2]
[406333474,1771758633427,-500.0,0.00015596,2]
[406333475,1771758633436,-175.15119367,0.00015596,2]
[406333476,1771758633445,-500.0,0.00015596,2]
[406333477,1771758633455,-500.0,0.00015596,2]
[406333478,1771758633464,-500.0,0.00015596,2]
[406333479,1771758633474,-500.0,0.00015596,2]
[406333480,1771758633483,-500.0,0.00015596,2]
[406333481,1771758633492,-500.0,0.00015596,2]
[406333482,1771758633502,-500.0,0.00015596,2]
[406333483,1771758633511,-500.0,0.00015596,2]
[406333484,1771758633521,-500.0,0.00015596,2]
[406333485,1771758633530,-500.0,0.00015596,2]
[406333486,1771758633540,-500.0,0.00015596,2]
[406333487,1771758633549,-500.0,0.00015596,2]
[406333488,1771758633558,-500.0,0.00015596,2]
[406333489,1771758633567,-500.0,0.00015596,2]
[406333490,1771758633577,-536.69967526,0.00015596,2]
[406333491,1771758633586,-500.0,0.00015596,2]
[406333492,1771758633594,-500.0,0.00015596,2]
[406333493,1771758633603,-500.0,0.00015596,2]
[406333494,1771758633612,-500.0,0.00015596,2]
[406333495,1771758633622,-500.0,0.00015596,2]
[406333496,1771758633631,-500.0,0.00015596,2]
[406333497,1771758633641,-500.0,0.00015596,2]
[406333498,1771758633651,-500.0,0.00015596,2]
[406333499,1771758633660,-500.0,0.00015596,2]
[406333500,1771758633669,-500.0,0.00015596,2]
[406333501,1771758633678,-500.0,0.00015596,2]
[406333502,1771758633688,-500.0,0.00015596,2]
[406333503,1771758633697,-500.0,0.00015596,2]
[406333504,1771758633707,-500.0,0.00015596,2]
[406333505,1771758633716,-500.0,0.00015596,2]
[406333506,1771758633726,-500.0,0.00015596,2]
[406333507,1771758633736,-500.0,0.00015596,2]
[406333508,1771758633745,-500.0,0.00015596,2]
[406333509,1771758633755,-500.0,0.00015596,2]
[406333510,1771758633764,-500.0,0.00015596,2]
[406333511,1771758633774,-500.0,0.00015596,2]
[406333512,1771758633783,-500.0,0.00015596,2]
[406333513,1771758633793,-614.61214042,0.00015596,2]
[406333514,1771758633803,-500.0,0.00015596,2]
[406333515,1771758633813,-500.0,0.00015596,2]
[406333516,1771758633822,-614.61214042,0.00015596,2]
[406333517,1771758633831,-557.30607021,0.00015596,2]
[406333518,1771758633841,-557.30607021,0.00015596,2]
[406333519,1771758633851,-500.0,0.00015597,2]
[406333520,1771758633860,-42309.44585446,0.00015597,2]
[406333521,1771758633869,-600.0,0.00015598,2]
[406333522,1771758633879,-450.0,0.00015598,30]
[406333523,1771758633888,-500.0,0.00015598,2]
[406333524,1771758633897,-1000.0,0.00015599,2]
[406333525,1771758633907,-263.6441,0.00015599,2]
[406333526,1771758633916,-3253.52054901,0.000156,2]
[406333527,1771758633926,-700.0,0.000156,5]
[406333528,1771758633936,-1464.02451433,0.000156,2]
[406333529,1771758633945,-165.20180217,0.000156,2]
[406333530,1771758633954,-191.0,0.00015603,2]
[406333531,1771758633963,-1908.0,0.00015609,2]
[406333532,1771758633973,-1069.0,0.0001564,2]
[406333533,1771758633982,-1973.0,0.00015647,2]
[406333534,1771758633991,-369.02200372,0.00015647,2]
[406333535,1771758634000,-517.0,0.00015665,2]
[406333536,1771758634010,-215.0,0.00015678,2]
[406333537,1771758634019,-200.0,0.00015685,2]
[406333538,1771758634028,-299.99,0.00015685,2]
[406333539,1771758634038,-9999.99,0.00015685,2]
[406333540,1771758634051,-9999.99,0.00015685,2]
[406333541,1771758634060,-999.99,0.00015685,2]
[406333542,1771758634069,-9999.99,0.00015685,2]
[406333543,1771758634079,-9999.99,0.00015685,2]
[406333544,1771758634092,-150.99,0.00015685,2]
[406333545,1771758634101,-514.63024796,0.00015698,2]
[406333546,1771758634111,-198.06619885,0.00015698,2]
[406333547,1771758634120,-500.0,0.00015698,2]
[406333548,1771758634131,-500.0,0.00015698,2]
[406333549,1771758634141,-264.24050885,0.00015698,2]
[406333550,1771758634151,-500.0,0.00015698,2]
[406333551,1771758634161,-805376.71390884,0.00015699,2]
[406333552,1771758634175,-24028.26684902,0.00015699,2]
[406333553,1771758634186,-41101.57850261,0.00015699,2]
[406333554,1771758634197,-192606.63921117,0.00015699,2]
[406333555,1771758634209,-1254.41808677,0.00015699,2]
[406333556,1771758634220,-21018.0468151,0.00015699,2]
[406333560,1771758638298,-500.0,0.00015699,2]
[406333561,1771758638352,-100285.62329334,0.00015699,2]
[406333562,1771758638560,-111756.41133315,0.00015699,2]
[406333564,1771758638570,-119121.06465857,0.000157,2]
[406333566,1771758638579,-1100.0,0.000157,5]
[406333568,1771758638589,-337.40688808,0.00015702,2]
[406333570,1771758638598,-250.0,0.00015713,2]
[406333572,1771758638607,-1504.3106123,0.00015768,2]
[406333574,1771758638616,-926.3118746,0.00015768,2]
[406333576,1771758638626,-1046.8908856,0.00015768,2]
[406333578,1771758638635,-5834.4951254,0.00015768,2]
[406333580,1771758638644,-226.73826614,0.00015783,2]
[406333582,1771758638654,-151.0,0.00015799,2]
[406333584,1771758638663,-1500.0,0.000158,5]
[406333585,1771758638672,-394.15,0.00015833,2]
[406333588,1771758638682,-500.0,0.00015872,2]
[406333590,1771758638691,-1600.0,0.00015892,2]
[406333591,1771758638701,-500.0,0.00015898,2]
[406333592,1771758638711,-500.0,0.00015898,2]
[406333593,1771758638721,-500.0,0.00015898,2]
[406333594,1771758638731,-269.30860549,0.00015898,2]
[406333595,1771758638740,-500.0,0.00015898,2]